Cogmind - Beta 15 @@@ ROGUE MODE // 2025.05.27 @ 23:03:26 Player: Skysub Result: Destroyed by R3-R9R(R) with Subdweller Beam Cannon Performance ------------- Evolutions (0) 0 Regions Visited (2) 400 Robots Destroyed (24) 120 Value Destroyed (696) 696 Prototype IDs (0) 0 Alien Tech Used (0) 0 Bonus (0) 0 TOTAL SCORE: 1216 Bonus ------- None Cogmind --------- Core Integrity 0/250 Matter 60/300 Energy 200/200 System Corruption 2% Temperature Cool (9) Movement Core (400) Ox7 Location -10/Subcaves Parts ------- > --- POWER (1) -------- Subdweller Power Source > --- PROPULSION (2) --- (None) > --- UTILITY (2) ------ Medium Storage Unit > --- WEAPON (2) ------- Subdweller Shrapnel Launcher > --- INVENTORY (10) --- Light Ion Engine Signal Interpreter Core Shielding Small Laser Small Laser Mining Claw Peak State ------------ > --- POWER ------------ Light Nuclear Core > --- PROPULSION ------- Light Treads Light Treads > --- UTILITY ---------- Small Storage Unit Structural Scanner > --- WEAPON ----------- Light Assault Rifle Light Assault Rifle > --- INVENTORY -------- Light Ion Engine Light Ion Engine Wheel Compact Wheel Small Laser Grenade Launcher Mining Claw [Rating: 9] Favorites ----------- Power Light Ion Engine Engine Light Ion Engine Power Core Light Nuclear Core Propulsion Light Treads Treads Light Treads Wheel Wheel Utility Medium Storage Unit Device Structural Scanner Storage Medium Storage Unit Protection Core Shielding Weapon Light Assault Rifle Energy Gun Small Laser Ballistic Gun Light Assault Rifle Launcher Grenade Launcher Build | -11 -10 -10 ------- Run | Yrd Mat Sub Slots Evolved . | . . . Power . | . . . Propulsion . | . . . Utility . | . . . Weapon . | . . . Parts Attached 17 | 6 5 6 Power 4 | 1 1 2 Engine 3 | 1 . 2 Core 1 | . 1 . Reactor . | . . . Propulsion 4 | 2 . 2 Treads 2 | 2 . . Leg . | . . . Wheel 2 | . . 2 Hover . | . . . Flight . | . . . Utility 4 | 1 3 . Device 1 | . 1 . Storage 2 | 1 1 . Processor . | . . . Hackware . | . . . Protection 1 | . 1 . Artifact . | . . . Weapon 5 | 2 1 2 Energy Gun 1 | . 1 . Energy Cannon . | . . . Ballistic Gun 2 | 2 . . Ballistic Cannon . | . . . Launcher 2 | . . 2 Special Weapon . | . . . Impact Weapon . | . . . Slashing Weapon . | . . . Piercing Weapon . | . . . Special Melee Weapon . | . . . Unidentified Prototypes . | . . . Parts Lost 9 | . 2 7 Power 1 | . 1 . Propulsion 4 | . . 4 Utility 1 | . . 1 Weapon 3 | . 1 2 Highest Loss Streak 4 | . 2 4 To Critical Strikes . | . . . Average Backups 6 | 3 7 5 Power 1 | . 1 . Propulsion 1 | 1 2 . Utility 1 | . 1 2 Weapon 2 | . 2 2 Tool/Special . | . . . Unused Backups 4 | . 1 3 Power . | . . . Propulsion . | . . . Utility 1 | . . 1 Weapon 3 | . 1 2 Tool/Special . | . . . Average Slot Usage (%) 90 | . 88 96 Engine 4 | . 2 12 Core 1 | . 2 . Treads 22 | . 28 3 Wheel 5 | . . 23 Device 6 | . 4 14 Storage 14 | . 14 14 Protection 6 | . 8 . Energy Gun 9 | . 8 13 Ballistic Gun 14 | . 19 1 Launcher 3 | . . 13 Peak Build Rating 9 | 6 9 9 Average Rating 6 | 5 6 7 On Entrance 4 | . 6 6 Naked Turns . | . . . Heaviest Build 26 | 10 13 26 Greatest Support 40 | 40 40 40 Greatest Overweight (x) 8 | . . 8 Average Overweight (x) . | . . . Largest Inventory Capacity 10 | 8 10 10 Average Capacity 9 | 7 8 10 Most Carried 8 | 5 8 8 Average Carried 6 | 3 7 5 Final Capacity 10 | 8 10 10 Final Carried 8 | 5 8 6 Class Distribution -------------------- 100% | Mutant Dominant Class ---------------- Mutant | -10/Materials Mutant | -10/Subcaves Resources | -11 -10 -10 ----------- Run | Yrd Mat Sub Matter Collected 492 | 294 145 53 Remotely . | . . . Salvage Created 770 | 152 499 119 Parts 47 | 12 28 7 Haulers Intercepted . | . . . Recyclers Shooed 1 | 1 . . Parts Field Recycled . | . . . Retrieved Matter . | . . . Parts Self-Destructed 3 | . . 3 Prevented . | . . . Kills | -11 -10 -10 ------- Run | Yrd Mat Sub Combat Hostiles Destroyed 17 | . 11 6 Guns 11 | . 11 . AOE 6 | . . 6 Classes Destroyed 7 | 3 3 1 Worker 2 | 2 . . Builder 1 | . 1 . Tunneler 2 | 2 . . Recycler 1 | 1 . . Watcher 1 | . 1 . Grunt 11 | . 11 . Subdweller 6 | . . 6 Best Kill Streak 5 | 5 3 4 Combat Bots Only 4 | . 3 4 Max Kills in Single Turn 1 | 1 1 1 Gunslinging . | . . . Exploded 1 | . . 1 Melee . | . . . Uniques/NPCs Destroyed . | . . . Combat | -11 -10 -10 -------- Run | Yrd Mat Sub Hostile Shots Fired 94 | . 62 32 Missed 33 | . 23 10 Hits 61 | . 39 22 Projectile 61 | . 39 22 AOE 2 | . . 2 Critical Strikes 1 | . 1 . Actively Blocked 1 | . 1 . Damage Taken 1152 | . 540 612 Core 276 | . 110 166 Absorbed by Shields . | . . . Redirected to Shielding 13 | . 13 . Core Remaining (%) 100 | 100 . . Volleys Fired 104 | 23 63 18 Largest 2 | 2 2 2 Hottest 80 | 40 60 80 Shots Fired 204 | 46 126 32 Gun 186 | 46 126 14 Cannon . | . . . Launcher 18 | . . 18 Special . | . . . Kinetic 161 | 46 110 5 Thermal 27 | . 16 11 Explosive 16 | . . 16 Electromagnetic . | . . . Robot Hit Streak 18 | 11 18 17 Robot Miss Streak 7 | 2 7 1 Penetration Max . | . . . Secondary Targets 2 | . 2 . Max Gunslinging Chain 1 | . 1 . Shots Hit Robots 147 | 34 87 26 Core Hits 61 | 11 36 14 Critical Kills . | . . . Critical Parts Destroyed . | . . . Critical Strikes . | . . . Melee Attacks . | . . . Impact . | . . . Slashing . | . . . Piercing . | . . . Sneak Attacks . | . . . Combat Hostiles . | . . . Follow-up Attacks . | . . . Damage Inflicted 2103 | 273 755 1075 Guns 1129 | 273 745 111 Cannons . | . . . Explosions 964 | . . 964 Melee . | . . . Ramming 10 | . 10 . Kinetic 1096 | 273 622 201 Thermal 212 | . 123 89 Explosive 785 | . . 785 Electromagnetic . | . . . Impact . | . . . Slashing . | . . . Piercing . | . . . Highest Corruption 2 | . 2 2 Average Corruption 2 | . 2 2 Corruption Purged . | . . . Corruption Blocked . | . . . Effects 12 | . 6 6 Message Errors 4 | . 2 2 Matter Fused 2 | . 1 1 Heat Flow Errors 3 | . 3 . Data Loss (minor) 2 | . . 2 Alerts 1 | . . 1 Overload Shots . | . . . Overflow Damage . | . . . Projectiles . | . . . Explosions . | . . . Melee . | . . . Knockbacks . | . . . Impact . | . . . Kinetic . | . . . Secondary . | . . . Self-Inflicted Damage . | . . . Shots . | . . . Rammed 2 | . 2 . Targets Rammed 2 | . 2 . Kicked . | . . . Crushed . | . . . Highest Temperature 260 | . 260 1 Average Temperature 37 | . 38 1 Received Heat Transfer 459 | . 300 159 Siege Activations . | . . . Martial Activations . | . . . Shielding Activations . | . . . Robots Disrupted . | . . . Combat Hostiles . | . . . Robots Corrupted . | . . . Combat Hostiles . | . . . Parts Fried . | . . . Impact Corruptions . | . . . Robots Melted . | . . . Combat Hostiles . | . . . Parts Melted . | . . . Heat Transferred 475 | . 275 200 Parts Sabotaged . | . . . Parts Stolen . | . . . Parts Stripped . | . . . Power Chain Reactions . | . . . Alert | -11 -10 -10 ------- Run | Yrd Mat Sub Maximum Alert Level . | . . . Low Security (%) 100 | 100 100 . Level 1 . | . . . Level 2 . | . . . Level 3 . | . . . Level 4 . | . . . Level 5 . | . . . High Security . | . . . Max Security . | . . . Peak Influence 157 | 15 157 . Initial . | . . . Average 63 | 2 73 . Influence Increases 413 | 25 388 . Destroy 0b10 Robot/C 220 | . 220 . Destroy 0b10 Robot/NC 35 | 25 10 . Destroy Leader 62 | . 62 . Successful Hack 21 | . 21 . Select Force Hacks 60 | . 60 . Lose Combat Pursuer 15 | . 15 . Influence Decreases 413 | 25 388 . Time Decay 393 | 25 368 . Lost Part 20 | . 20 . Squads Dispatched 3 | . 3 . Investigation 2 | . 2 . Extermination . | . . . Reinforcement 1 | . 1 . Assault . | . . . Garrison . | . . . Intercept . | . . . Searches Triggered . | . . . Construction Impeded . | . . . Haulers Reinforced . | . . . Active Scanning Responses . | . . . Cargo Convoy Interrupts . | . . . Stealth | -11 -10 -10 --------- Run | Yrd Mat Sub Distress Signals 1 | . 1 . Communications Jammed . | . . . Distress Signals . | . . . Times Spotted 25 | . 17 8 Peak Tracking Total 3 | . 3 3 Tactical Retreats 1 | . 1 . Traps | -11 -10 -10 ------- Run | Yrd Mat Sub Traps Triggered 1 | . 1 . Indirectly . | . . . Trap Hack Attempts . | . . . Triggered . | . . . Disarmed . | . . . Reprogrammed . | . . . Reused . | . . . Traps Extracted . | . . . Installed . | . . . Triggered . | . . . Machines | -11 -10 -10 ---------- Run | Yrd Mat Sub Machines Disabled . | . . . Max in Single Turn . | . . . Machines Repaired . | . . . Machines Dismantled . | . . . Machines Sabotaged . | . . . Overloaded Fab Kills . | . . . Hacking | -11 -10 -10 --------- Run | Yrd Mat Sub Machines Accessed 9 | . 8 1 Terminals 6 | . 6 . Fabricators . | . . . Repair Stations . | . . . Recycling Units 2 | . 2 . Scanalyzers . | . . . Garrison Access . | . . . Total Hacks 22 | . 18 4 Successful 16 | . 12 4 Failed 6 | . 6 . Catastrophic 2 | . 2 . Database Lockouts . | . . . Manual 13 | . 13 . Terminals 14 | . 14 . Fabricators . | . . . Repair Stations . | . . . Recycling Units 4 | . 4 . Scanalyzers . | . . . Garrison Access . | . . . Terminal Hacks 7 | . 3 4 Record 4 | . . 4 Branch Access Points 1 | . 1 . Locate Traps 1 | . 1 . Zone Layout 1 | . 1 . Fabricator Hacks . | . . . Repair Station Hacks . | . . . Recycling Unit Hacks 2 | . 2 . Report Inventory 2 | . 2 . Scanalyzer . | . . . Garrison Access Hacks . | . . . Unauthorized Hacks 7 | . 7 . Terminals 5 | . 5 . Botnet 5 | . 5 . Fabricators . | . . . Repair Stations . | . . . Recycling Units 2 | . 2 . Tunnel 2 | . 2 . Scanalyzers . | . . . Garrison Access . | . . . Data Cores Recovered . | . . . Used . | . . . Hacking Detections 7 | . 7 . Full Trace Events . | . . . Feedback Events . | . . . Feedback Blocked . | . . . Robot Schematics Acquired . | . . . Robots Built . | . . . Authchips . | . . . Time . | . . . Total Robot Build Rating . | . . . Part Schematics Acquired . | . . . Parts Built . | . . . Authchips . | . . . Time . | . . . Total Part Build Rating . | . . . Parts Repaired . | . . . Time . | . . . Parts Recycled . | . . . Recycled Matter . | . . . Retrieved Matter . | . . . Retrieved Components . | . . . Parts Scanalyzed . | . . . Part Schematics Acquired . | . . . Parts Damaged . | . . . Bothacking | -11 -10 -10 ------------ Run | Yrd Mat Sub Used RIF Installer . | . . . Robots Hacked . | . . . Non-combat . | . . . Combat . | . . . Robot Hacks Applied . | . . . Relay Couplers Released . | . . . Fabnet Peak Effective % . | . . . Robots Rewired . | . . . Allies Hacked . | . . . Hacks Repelled . | . . . Allies | -11 -10 -10 -------- Run | Yrd Mat Sub Total Allies . | . . . Largest Group . | . . . Highest-Rated Group . | . . . Highest-Rated Ally . | . . . Total Orders . | . . . Ally Attacks . | . . . Total Damage . | . . . Kills . | . . . Allies Corrupted . | . . . Allies Melted . | . . . Intel | -11 -10 -10 ------- Run | Yrd Mat Sub Active Infowar (turns) 596 | . 314 282 Structural 596 | . 314 282 Robot Analysis Total . | . . . Derelict Logs Recovered . | . . . Drone Launches . | . . . Drone Recoveries . | . . . Exploration | -11 -10 -10 ------------- Run | Yrd Mat Sub Turns Passed 1402 | 144 973 285 Spaces Moved 695 | 46 407 242 Core 3 | 2 . 1 Treads 459 | 44 407 8 Legs . | . . . Wheels 233 | . . 233 Hover . | . . . Flight . | . . . Fastest Speed 50 | 50 160 90 Average Speed 136 | 155 160 93 Slowest Speed 450 | 160 160 450 Overloaded Moves . | . . . Propulsion Burnouts . | . . . Robots Hopped . | . . . Potential Cave-ins . | . . . Cave-ins Triggered . | . . . Exploration Rate (%) 40 | 4 95 22 Regions Visited 2 Branch Regions 1 Pre-discovered Areas 3 | . 2 1 Known Exits Taken . | . . . Unknown Exits Taken 2 | 1 1 . Scrap Searched . | . . . Spaces Dug . | . . . Terrain Destroyed 71 | . . 71 Melee . | . . . Projectile . | . . . AOE 71 | . . 71 Terrain Rammed . | . . . Walls Destroyed . | . . . Machines Disabled . | . . . Actions | -11 -10 -10 --------- Run | Yrd Mat Sub Total 971 | 79 623 269 Wait 138 | . 138 . Move 693 | 45 406 242 Hop . | . . . Pick Up 11 | 5 5 1 Fast Attach 7 | 6 1 . Attach 5 | . 1 4 Detach . | . . . Swap 8 | . 4 4 Drop 3 | . 3 . Fire 104 | 23 63 18 Melee . | . . . Ram . | . . . Kick . | . . . Crush 2 | . 2 . Escape Stasis . | . . . Rewire . | . . . Trap . | . . . Miscellaneous . | . . . Route ------- -11/Scrapyard -10/Materials (discovered 6 exits: [*Mat x3] / *Min x2 / *Sub) -10/Subcaves (discovered 3 exits: Mat x2 / Rec) History --------- Turn | Location | Event 7 | -11/Scrapyard | Discovered new exit (range 15) 145 | -11/Scrapyard | Entered Materials 167 | -10/Materials | Discovered new exit (range 9) 312 | -10/Materials | Build established: Mutant 354 | -10/Materials | Discovered new exit (range 5) 613 | -10/Materials | Discovered new exit (range 16) 693 | -10/Materials | Identified exit to Mines 807 | -10/Materials | Discovered new exit (range 8) 1084 | -10/Materials | Discovered new exit (range 11) 1118 | -10/Materials | Entered Subcaves 1145 | -10/Subcaves | Core integrity fell below 50% 1171 | -10/Subcaves | Visited Clippyterm 1173 | -10/Subcaves | Lost 3 parts (2n1w) 1174 | -10/Subcaves | Identified exit to Recycling 1174 | -10/Subcaves | Identified exit to Materials 1174 | -10/Subcaves | Learned location of Deep Caves (-6) 1190 | -10/Subcaves | Ambushed by Subdweller buried in earth 1202 | -10/Subcaves | Ambushed by Subdweller buried in earth 1388 | -10/Subcaves | A Subdweller sparked back to life 1388 | -10/Subcaves | A Subdweller sparked back to life 1388 | -10/Subcaves | A Subdweller sparked back to life 1397 | -10/Subcaves | Core integrity fell below 20% 1403 | -10/Subcaves | Destroyed by R3-R9R(R) with Subdweller Beam Cannon Last Messages --------------- VA-NI7(R): "ARGHSUB!" TU-X99(R) destroyed. VA-NI7(R) destroyed. The unstable cave ceiling collapses. Acquired Sub. Shrapnel Launcher. |KV|PLX&RVGIDZ1/M /S#RCRITF84OOSWY&R Acquired 28 matter. L DC-WRB(R) creaks and sparks as it begins to move. HF-8FJ(R) creaks and sparks as it begins to move. R3-R9R(R) creaks and sparks as it begins to move. Wheel destroyed. Com. Wheel destroyed. HF-8FJ(R) destroyed. Structural Scanner destroyed. Grenade Launcher destroyed. Map ----- +----------------------------------------------------+ | ?????????????????????????????????????????????????? | | ?????????????????????????????????????????????????? | | ?????????????????????????????????????????????????? | | ?????????????????????????????????????????????????? | | ?????????????????????????????????????????????????? | | ?????????????????????????????????????????????????? | | ?????????????????????????????????????????????????? | | ?????????????????????????????????????????????????? | | ?????????????????????????????????????????????????? | | ??????????????????????????????????? ????????????? | | ??????????????????????????????????? #??????????? | | ??????????????????????????????? ###?????????? | | ??????????????????????????????? ## ###?????????? | | ???????????????????????????????? ##?????????? | | ???????????????????????????????? ###????????? | | ???????????????????????????????? # ###????????? | | ??????????????????????????????? ## ##???###### | | ??????????????????????????????##;# ##?######## | | ?????????????????????????????## ####### # | | ????????????????????????????# ##### | | ????????????????????# ####### = #### | | ????????????????????#########; % # | | ????????????????????## ## RR * # | | ????????????????????### | | ?????????????????????### # #### | | ?????????????????????####@ ## #### | | ??????????????????????####;# ### #### | | ???????????????????????##### ########### | | ????????????????????????#### ############ ## | | ??????????????????????????########???????##### ## | | ??????????????????????????########????????##### ## | | ????????????????????????????????????????????#### | | ?????????????????????????????????????????????### | | ??????????????????????????????????????????????### | | ??????????????????????????????????????????????#### | | ???????????????????????????????????????????????### | | ????????????????????????????????????????????????## | | ?????????????????????????????????????????????????? | | ?????????????????????????????????????????????????? | | ?????????????????????????????????????????????????? | | ?????????????????????????????????????????????????? | | ?????????????????????????????????????????????????? | | ?????????????????????????????????????????????????? | | ?????????????????????????????????????????????????? | | ?????????????????????????????????????????????????? | | ?????????????????????????????????????????????????? | | ?????????????????????????????????????????????????? | | ?????????????????????????????????????????????????? | | ?????????????????????????????????????????????????? | | ?????????????????????????????????????????????????? | +----------------------------------------------------+ Best States ------------- Heat Dissipation 25 Energy Generation 15 Energy Capacity 200 Matter Stores 300 Matter Capacity 300 Sight Range 16 Terrain Scan Density 10 Core Shielding 20 Evasion (%) 42 Recoil Reduction 2 Item Schematics ----------------- None Robot Schematics ------------------ None Fabricated ------------ Nothing Repaired ---------- Nothing Alien Tech Used ----------------- None Achievements -------------- None Challenges ------------ None Game ------ Seed SuperquantumRiotMatrix Manual? 0 Play Time 00:11:17 Cumulative 105.5 hours Start 2025.05.27 @ 22:52:04 End 2025.05.27 @ 23:03:26 Sessions 1 Manual Loads 0 Difficulty Rogue Special Mode None Game No. 110 Rogue 110 Adventurer 0 Explorer 0 Win Type - Total 2 Types 1/0/0/1/0/0/0/0/0/0 Lore% 55 Gallery% 54 Achievement% 48 Wizard Run 0 Options --------- Layout 1 ASCII 0 Keyboard 1 Movement Numpad Keybinds 0 Fullscreen 1 Font 24/Smallcaps Map View 25x17 Zoom Use 62% Tactical HUD 0 Map Filters NONE Filters NONE Steam 1 RUN: 4f8d9933-08b4-40f7-901e-8b75fb51e536